Workbook

Sheet Introduction
G1: =RIGHT(CELL("filename",A1), LEN(CELL("filename",A1)) - SEARCH("]", CELL("filename",A1))) -> Introduction
G2: by Hugues Pirotte
D4: Below is a list of the worksheets of the file, by order of appearance: (CTRL+h = back to "Introduction") | H4: =MID(CELL("filename",A1),SEARCH("-",CELL("filename",A1))+7,SEARCH(".",CELL("filename",A1))-SEARCH("-",CELL("filename",A1))-7) -> Interest rate risk management
C5: 1 | D5: Introduction
C6: 2 | D6: Bootstrap
C7: 3 | D7: Forward rates
C8: 4 | D8: Immunisation
C9: 5 | D9: IRS
C10: 6 | D10: PCA (soon)

Sheet Bootstrap
A1: =MID(CELL("filename",A1),SEARCH("-",CELL("filename",A1))+7,SEARCH(".",CELL("filename",A1))-SEARCH("-",CELL("filename",A1))-7) -> Interest rate risk management
B3: 1 | D3: We want to have a 0-coupon "benchmark" term-structure
D4: to discount our cash flows….
C5: a | D5: Goal
D6: Term | E6: Rate
D7: 1m
D8: 2m
D9: 3m
D10: 6m
D11: 12m
D12: 2y
D13: …
B15: 2 | C15: How to obtain them?
C16: a | D16: Extract them from coupon-bonds…
D17: (bootstrapping) | I17: Market
E18: Year1 | F18: Year2 | G18: Year3 | H18: Year4 | I18: Prices
D19: 1 | E19: 103 | I19: x
D20: 2 | E20: 5 | F20: 105 | I20: y
D21: 3 | E21: 4 | F21: 4 | G21: 104 | I21: z
D22: 4 | E22: 6 | F22: 6 | G22: 6 | H22: 106 | I22: w
D24: 1
D26: 2
D28: 3
D30: 4
C32: b
E33: 1m
E34: 3m
E35: 4m
E36: 6m
E37: 12m
E38: 2y
E39: 3y
E40: 5y
E41: 10y
E42: 20y
E43: 30y

Sheet Forward rates
A1: =MID(CELL("filename",A1),SEARCH("-",CELL("filename",A1))+7,SEARCH(".",CELL("filename",A1))-SEARCH("-",CELL("filename",A1))-7) -> Interest rate risk management
D3: Year | E3: Spot rate | F3: Forward rate
D4: 1 | E4: 0.02
D5: 2 | E5: 0.025
D6: 3 | E6: 0.0325
D7: 4 | E7: 0.036
D8: 5 | E8: 0.052 | F8: =E8+4*(E8-E7) -> 0.116
F9: =(1+E8)^D8/(1+E7)^D7-1 -> 0.1185095009

Sheet Immunisation
A1: =MID(CELL("filename",A1),SEARCH("-",CELL("filename",A1))+7,SEARCH(".",CELL("filename",A1))-SEARCH("-",CELL("filename",A1))-7) -> Interest rate risk management
B3: 1 | C3: Exercise | H3: Immunisation | I3: = replicating a 0-coupon bond with coupon-paying bonds
D5: Commitment with a client | G5: 3 | H5: years investment
D6: Current structure of IRs | G6: 0.04 | H6: flat
D8: There is no 3 years 0-coupon bond
D9: You have two bonds in the market instead
E10: coupon | F10: maturity
D11: A-bond | E11: 3 | F11: 2
D12: B-bond | E12: 6 | F12: 5
D14: For the bank, the problem is the following:
D16: Assets | G16: Liabilities
D17: A-bond | E17: ? | F17: EUR | G17: 3y straight bond | H17: 10000 | I17: EUR
D18: B-bond | E18: ? | F18: EUR
D20: duration | E20: 3 | G20: duration | H20: 3
G21: amount | I21: expected at T=3
D23: Solution
E25: Year 0 | G25: rate | H25: 0.04 | L25: Year 1 | N25: rate | O25: 0.04 | S25: Year 2 | U25: rate | V25: 0.04 | Z25: Year 3 | AB25: rate | AC25: 0.04
E27: A-bond | G27: B-bond | L27: A-bond | N27: B-bond | S27: A-bond | U27: B-bond | Z27: A-bond | AB27: B-bond
E28: CFs | F28: PV(CFs) | G28: CFs | H28: PV(CFs) | L28: CFs | M28: PV(CFs) | N28: CFs | O28: PV(CFs) | S28: CFs | T28: PV(CFs) | U28: CFs | V28: PV(CFs) | Z28: CFs | AA28: PV(CFs) | AB28: CFs | AC28: PV(CFs)
D29: 0 | K29: 0 | R29: 0 | Y29: 0
D30: 1
D31: 2 | K31: 1
D32: 3 | K32: 2 | R32: 1
D33: 4 | K33: 3 | R33: 2 | Y33: 1
D34: 5 | K34: 4 | R34: 3 | Y34: 2
E36: Duration | G36: Duration | L36: Duration | N36: Duration | S36: Duration | U36: Duration
E37: Weights | L37: Weights | S37: Weights
E39: Desired duration | L39: Desired duration | S39: Desired duration | Z39: Desired duration
E40: Effective duration | L40: Effective duration | S40: Effective duration | Z40: Effective duration
E41: Amount available? | L41: Amount available? | S41: Amount available? | Z41: Amount available? | AA41: =10000*(1+4%)^3 -> 11248.64
E43: Allocation | G43: EUR | I43: EUR | L43: Allocation | N43: EUR | P43: EUR | S43: Allocation | U43: EUR | W43: EUR | Z43: Average yearly return over 3y
E44: # bonds of 1000? | L44: # bonds of 1000? | S44: # bonds of 1000?
B47: 2 | D47: Stress-test
F48: Rate at year 2
F49: 0.02 | G49: 0.025 | H49: 0.04 | I49: 0.05 | J49: 0.06
D50: rate at year 1 | E50: 0.02
E51: 0.03
E52: 0.04
E53: 0.05
E54: 0.06

Sheet IRS
A1: =MID(CELL("filename",A1),SEARCH("-",CELL("filename",A1))+7,SEARCH(".",CELL("filename",A1))-SEARCH("-",CELL("filename",A1))-7) -> Interest rate risk management
B3: 1
B17: 2
D18: Companies | E18: Rating | F18: Fixed | G18: Floating | H18: Objective
D19: A | E19: AAA | F19: 0.04 | G19: LIBOR+1% | H19: borrowing floating
D20: B | E20: BBB | F20: 0.06 | G20: LIBOR+2% | H20: borrowing fixed
E21: difference | F21: 0.02 | G21: 0.01
B38: 3
B50: 4 | C50: Swap valuation
E51: Floating | G51: Fixed
D52: Year | E52: leg | G52: leg
D53: 1 | E53: -L | G53: 0.038
D54: 2 | E54: -L | G54: 0.038
D55: 3 | E55: -L | G55: 0.038
D56: 4 | E56: -L | G56: 0.038
D57: 5 | E57: -L | G57: 0.038
D58: 6 | E58: -L | G58: 0.038
D59: 7 | E59: -L | G59: 0.038
D60: 8 | E60: -L | G60: 0.038
D61: 9 | E61: -L | G61: 0.038
D62: 10 | E62: -L | F62: -100 | G62: 0.038 | H62: +100
B65: 5 | D65: Imagine a 5-year Swap floating vs. ? fixed
C67: a | E67: coupon | F67: 0.0411545907
E69: Spot | F69: E(payments) | G69: PV(CFs) | I69: E(payments) | J69: PV(CFs)
D70: Year | E70: rates | F70: fixed leg | G70: fixed leg | I70: floating leg | J70: floating leg
D71: 1 | E71: 0.02 | F71: =$F$67 -> 0.0411545907 | G71: =F71/(1+E71)^D71 -> 0.04034763794 | I71: =E71 -> 0.02 | J71: =I71/(1+E71)^D71 -> 0.01960784314
D72: 2 | E72: 0.025 | F72: =$F$67 -> 0.0411545907 | G72: =F72/(1+E72)^D72 -> 0.0391715319 | I72: =(1+E72)^D72/(1+E71)^D71-1 -> 0.0300245098 | J72: =I72/(1+E72)^D72 -> 0.02857776067
D73: 3 | E73: 0.0325 | F73: 0.0411545907 | G73: 0.03738936641 | I73: =(1+E73)^D73/(1+E72)^D72-1 -> 0.04766503569 | J73: 0.04330417225
D74: 4 | E74: 0.0375 | F74: 0.0411545907 | G74: 0.03551941998 | I74: 0.05264574804 | J74: 0.04543712871
D75: 5 | E75: 0.042 | F75: =$F$67+1 -> 1.041154591 | G75: 0.8475720438 | I75: =(1+E75)^D75/(1+E74)^D74 -> 1.060196029 | J75: 0.8630730952
G76: =SUM(G71:G75) -> 1 | J76: =SUM(J71:J75) -> 1
F78: Swap value | G78: =G76-J76 -> 0
C80: b | D80: Next year…
E82: coupon | F82: 0.0411545907
E84: Spot | F84: E(payments) | G84: PV(CFs) | I84: E(payments) | J84: PV(CFs)
D85: Year | E85: rates | F85: fixed leg | G85: fixed leg | I85: floating leg | J85: floating leg
D86: 1 | E86: 0.0275 | F86: =$F$82 -> 0.0411545907 | G86: =F86/(1+E86)^D86 -> 0.04005312963 | I86: =E86 -> 0.0275 | J86: =I86/(1+E86)^D86 -> 0.02676399027
D87: 2 | E87: 0.036 | F87: 0.0411545907 | G87: 0.03834412007 | I87: =(1+E87)^D87/(1+E86)^D86-1 -> 0.0445703163 | J87: 0.04152658381
D88: 3 | E88: 0.04 | F88: 0.0411545907 | G88: 0.03658628127 | I88: 0.04804639168 | J88: 0.04271306725
D89: 4 | E89: 0.05 | F89: =$F$82+1 -> 1.041154591 | G89: 0.8565604584 | I89: =(1+E89)^D89/(1+E88)^D88 -> 1.08058063 | J89: 0.8889963587
G90: =SUM(G86:G89) -> 0.9715439894 | J90: =SUM(J86:J89) -> 1
F92: Swap value | G92: =G90-J90 -> -0.02845601061
B94: 6 | C94: An example

Sheet PCA (soon)
A1: =MID(CELL("filename",A1),SEARCH("-",CELL("filename",A1))+7,SEARCH(".",CELL("filename",A1))-SEARCH("-",CELL("filename",A1))-7) -> Interest rate risk management
